[Event "14th Chennai GM Open 2023"]
[Site "Chennai"]
[Date "2023.12.31"]
[Round "1.9"]
[White "Chinnam Vyshnavi"]
[Black "Podolchenko, Evgeniy"]
[Result "0-1"]
[ECO "C11"]
[WhiteElo "1478"]
[BlackElo "2376"]
[Annotator "RC"]
[PlyCount "60"]
[EventDate "2023.12.31"]
[EventType "swiss"]
[EventCountry "IND"]
[SourceTitle "playchess.com"]
[Source "ChessBase"]
[SourceQuality "1"]
[TimeControl "5400+30"]

1. e4 {[%emt 0:00:08]} e6 {[%emt 0:01:10]} 2. d4 {[%emt 0:00:38]} d5 {[%emt 0:00:03]} 3. Nc3 {[%emt 0:00:40]} Nf6 {[%emt 0:00:06]} 4. e5 {[%emt 0:00:24]} Nfd7 {[%emt 0:00:02]} 5. f4 {[%emt 0:00:35]} c5 {[%emt 0:00:02]} 6. Nf3 {[%emt 0:00:23]} Nc6 {[%emt 0:00:03]} 7. Be3 {[%emt 0:00:11]} Qb6 {[%emt 0:00:06]} 8. Na4 {[%emt 0:11:06]} Qa5+ {[%emt 0:03:28]} 9. Nc3 {[%emt 0:00:10]} Rb8 {[%emt 0:02:18]} 10. Qd2 {[%emt 0:02:04]} b5 {[%emt 0:01:31]} 11. dxc5 {[%emt 0:04:24]} Bxc5 {[%emt 0:11:29]} 12. Bxc5 {[%emt 0:01:50]} Nxc5 {[%emt 0:00:03]} 13. Bd3 {[%emt 0:00:51]} b4 {[%emt 0:04:52]} 14. Ne2 {[%emt 0:00:48]} Qb6 {[%emt 0:00:13]} 15. Nc1 {[%emt 0:07:29]} O-O {[%emt 0:07:13]} 16. Qf2 {[%emt 0:01:13]} f6 {[%emt 0:00:48]} 17. Qh4 {[%emt 0:14:28]} Nxd3+ {[%emt 0:01:19]} 18. Nxd3 {[%emt 0:00:49]} fxe5 {[%emt 0:08:31]} 19. fxe5 {[%emt 0:01:07]} Ba6 {[%emt 0:10:14]} 20. O-O-O {[%emt 0:08:31]} b3 {[%emt 0:03:03]} 21. axb3 {[%emt 0:02:57]} Bxd3 {[%emt 0:00:13]} 22. Rxd3 {[%emt 0:00:39]} Nb4 {[%emt 0:00:08]} 23. Rd4 {[%emt 0:05:40]} Nxc2 {[%emt 0:02:28]} 24. Kxc2 {[%emt 0:00:45]} Qxb3+ {[%emt 0:00:05]} 25. Kd2 {[%emt 0:00:57]} Qxb2+ {[%emt 0:00:02]} 26. Ke3 {[%emt 0:01:20]} Qxg2 {[%emt 0:02:08]} 27. Ng5 {[%emt 0:03:56]} Rb3+ {[%emt 0:00:59]} 28. Rd3 {[%emt 0:00:10]} d4+ {[%emt 0:00:06]} 29. Kxd4 {[%emt 0:01:03]} Qd5+ {[%emt 0:00:13]} 30. Ke3 {[%emt 0:00:06]} Qxd3# {[%emt 0:00:04]} 0-1

[Event "14th Chennai GM Open 2023"]
[Site "Chennai"]
[Date "2023.12.31"]
[Round "1.10"]
[White "Shahil Dey"]
[Black "Nijesh R"]
[Result "1-0"]
[ECO "A01"]
[WhiteElo "2368"]
[BlackElo "1476"]
[Annotator "RC"]
[PlyCount "99"]
[EventDate "2023.12.31"]
[EventType "swiss"]
[EventCountry "IND"]
[SourceTitle "playchess.com"]
[Source "ChessBase"]
[SourceQuality "1"]
[TimeControl "5400+30"]

1. b3 {[%emt 0:01:43]} e5 {[%emt 0:00:53]} 2. Bb2 {[%emt 0:00:05]} Nc6 {[%emt 0:00:17]} 3. e3 {[%emt 0:00:03]} d5 {[%emt 0:00:48]} 4. Bb5 {[%emt 0:00:56]} Bd6 {[%emt 0:00:56]} 5. Nf3 {[%emt 0:01:22]} Qe7 {[%emt 0:03:29]} 6. d4 {[%emt 0:02:03]} e4 {[%emt 0:01:28]} 7. Ne5 {[%emt 0:00:09]} Bxe5 {[%emt 0:04:28]} 8. dxe5 {[%emt 0:00:25]} Be6 {[%emt 0:03:14]} 9. Nd2 {[%emt 0:08:14]} Nh6 {[%emt 0:05:56]} 10. c4 {[%emt 0:18:03]} O-O {[%emt 0:02:36]} 11. cxd5 {[%emt 0:06:31]} Bxd5 {[%emt 0:00:21]} 12. Bxc6 {[%emt 0:01:13]} Bxc6 {[%emt 0:02:46]} 13. Qc2 {[%emt 0:09:11]} Qh4 {[%emt 1:09:48]} 14. O-O {[%emt 0:06:31]} Rad8 {[%emt 0:00:00]} 15. Rad1 {[%emt 0:01:50]} Bb5 {[%emt 0:00:00]} 16. Nxe4 {[%emt 0:05:46]} Bxf1 {[%emt 0:00:00]} 17. Rxf1 {[%emt 0:00:02]} Rfe8 {[%emt 0:00:00]} 18. h3 {[%emt 0:04:34]} Re6 {[%emt 0:00:00]} 19. Qxc7 {[%emt 0:03:27]} Rc6 {[%emt 0:00:00]} 20. Qa5 {[%emt 0:00:01]} Ra6 {[%emt 0:00:00]} 21. Qb4 {[%emt 0:00:08]} Rb6 {[%emt 0:00:00]} 22. Qa4 {[%emt 0:00:02]} Nf5 {[%emt 0:00:00]} 23. Qxa7 {[%emt 0:12:41]} Rc6 {[%emt 0:00:00]} 24. Qa5 {[%emt 0:03:34]} Ra6 {[%emt 0:00:00]} 25. Qb4 {[%emt 0:01:05]} Rxa2 {[%emt 0:00:00]} 26. Bc3 {[%emt 0:00:02]} b5 {[%emt 0:00:00]} 27. Kh2 {[%emt 0:00:09]} Rc2 {[%emt 0:00:00]} 28. Ba1 {[%emt 0:00:46]} Ra2 {[%emt 0:00:00]} 29. Kg1 {[%emt 0:00:54]} Rda8 {[%emt 0:01:10]} 30. Bc3 {[%emt 0:00:27]} Rc2 {[%emt 0:00:36]} 31. g3 {[%emt 0:02:40]} Qxh3 {[%emt 0:00:37]} 32. Ng5 {[%emt 0:00:15]} Qh5 {[%emt 0:01:52]} 33. Qe4 {[%emt 0:00:01]} Raa2 {[%emt 0:00:28]} 34. Qxf5 {[%emt 0:02:02]} Rxc3 {[%emt 0:00:39]} 35. e6 {[%emt 0:00:21]} fxe6 {[%emt 0:03:07]} 36. Qxe6+ {[%emt 0:00:02]} Kf8 {[%emt 0:00:12]} 37. Qd6+ {[%emt 0:00:16]} Ke8 {[%emt 0:00:18]} 38. Qe5+ {[%emt 0:00:17]} Kd7 {[%emt 0:00:20]} 39. Qxg7+ {[%emt 0:00:05]} Ke8 {[%emt 0:01:32]} 40. Qe5+ {[%emt 0:00:08]} Kd7 {[%emt 0:00:07]} 41. Qxc3 {[%emt 0:00:15]} Qxg5 {[%emt 0:00:08]} 42. Rd1+ {[%emt 0:00:02]} Ke8 {[%emt 0:01:04]} 43. Qc8+ {[%emt 0:00:08]} Kf7 {[%emt 0:00:10]} 44. Rd7+ {[%emt 0:00:07]} Kg6 {[%emt 0:00:09]} 45. Qc6+ {[%emt 0:00:21]} Qf6 {[%emt 0:00:34]} 46. Rd6 {[%emt 0:00:04]} Qxd6 {[%emt 0:00:09]} 47. Qxd6+ {[%emt 0:00:04]} Kh5 {[%emt 0:00:11]} 48. Kg2 {[%emt 0:00:13]} h6 {[%emt 0:04:07]} 49. Qf6 {[%emt 0:00:05]} Kg4 {[%emt 0:00:00]} 50. Qg6# {[%emt 0:16:07]} 1-0

[Event "14th Chennai GM Open 2023"]
[Site "Chennai"]
[Date "2023.12.31"]
[Round "1.11"]
[White "Chukka Vineel Radha Karthik"]
[Black "Khusenkhojaev, Muhammad"]
[Result "0-1"]
[ECO "D00"]
[WhiteElo "1475"]
[BlackElo "2366"]
[Annotator "RC"]
[PlyCount "60"]
[EventDate "2023.12.31"]
[EventType "swiss"]
[EventCountry "IND"]
[SourceTitle "playchess.com"]
[Source "ChessBase"]
[SourceQuality "1"]
[TimeControl "5400+30"]

1. d4 {[%emt 0:01:00]} Nf6 {[%emt 0:00:35]} 2. Nf3 {[%emt 0:00:10]} g6 {[%emt 0:00:07]} 3. Nc3 {[%emt 0:00:23]} d5 {[%emt 0:00:08]} 4. Bf4 {[%emt 0:00:16]} Bg7 {[%emt 0:00:08]} 5. Nb5 {[%emt 0:06:46]} Na6 {[%emt 0:00:12]} 6. h3 {[%emt 0:06:52]} c6 {[%emt 0:01:15]} 7. Nc3 {[%emt 0:00:24]} O-O {[%emt 0:01:17]} 8. e3 {[%emt 0:00:21]} Qa5 {[%emt 0:00:15]} 9. Bd3 {[%emt 0:07:47]} c5 {[%emt 0:04:54]} 10. a3 {[%emt 0:05:32]} c4 {[%emt 0:00:49]} 11. Be2 {[%emt 0:00:15]} Ne4 {[%emt 0:00:06]} 12. g4 {[%emt 0:08:33]} b6 {[%emt 0:01:24]} 13. Nd2 {[%emt 0:06:42]} Nxc3 {[%emt 0:01:09]} 14. bxc3 {[%emt 0:00:11]} Qxc3 {[%emt 0:00:06]} 15. Bf3 {[%emt 0:02:57]} Bb7 {[%emt 0:00:12]} 16. O-O {[%emt 0:02:58]} Rac8 {[%emt 0:00:24]} 17. h4 {[%emt 0:04:40]} e5 {[%emt 0:01:06]} 18. dxe5 {[%emt 0:00:12]} Bxe5 {[%emt 0:00:07]} 19. Bxe5 {[%emt 0:00:15]} Qxe5 {[%emt 0:00:07]} 20. Bg2 {[%emt 0:00:29]} Qe6 {[%emt 0:01:43]} 21. Re1 {[%emt 0:01:48]} Nc5 {[%emt 0:00:31]} 22. Bh3 {[%emt 0:02:30]} Rcd8 {[%emt 0:02:32]} 23. Nf3 {[%emt 0:05:27]} Qe7 {[%emt 0:00:10]} 24. h5 {[%emt 0:12:10]} Ne6 {[%emt 0:01:18]} 25. Nd4 {[%emt 0:03:42]} Qf6 {[%emt 0:00:35]} 26. f4 {[%emt 0:01:47]} Nxd4 {[%emt 0:02:35]} 27. Qxd4 {[%emt 0:00:09]} Qh4 {[%emt 0:00:42]} 28. Kg2 {[%emt 0:02:20]} Rde8 {[%emt 0:00:30]} 29. h6 {[%emt 0:09:13]} Qxh6 {[%emt 0:01:39]} 30. Kg3 {[%emt 0:00:09]} Re4 {[%emt 0:00:41]} 0-1

[Event "14th Chennai GM Open 2023"]
[Site "Chennai"]
[Date "2023.12.31"]
[Round "1.12"]
[White "Buscara, Sevan"]
[Black "Vivaan Sardana"]
[Result "1/2-1/2"]
[ECO "C54"]
[WhiteElo "2362"]
[BlackElo "1471"]
[Annotator "RC"]
[PlyCount "114"]
[EventDate "2023.12.31"]
[EventType "swiss"]
[EventCountry "IND"]
[SourceTitle "playchess.com"]
[Source "ChessBase"]
[SourceQuality "1"]
[TimeControl "5400+30"]

1. e4 {[%emt 0:00:03]} e5 {[%emt 0:00:19]} 2. Nf3 {[%emt 0:00:13]} Nc6 {[%emt 0:00:11]} 3. Bc4 {[%emt 0:00:05]} Bc5 {[%emt 0:00:10]} 4. c3 {[%emt 0:00:07]} Nf6 {[%emt 0:00:12]} 5. d3 {[%emt 0:00:04]} d6 {[%emt 0:00:05]} 6. O-O {[%emt 0:00:14]} a6 {[%emt 0:00:09]} 7. a4 {[%emt 0:00:10]} h6 {[%emt 0:00:17]} 8. a5 {[%emt 0:00:47]} O-O {[%emt 0:00:09]} 9. Nbd2 {[%emt 0:00:20]} Ba7 {[%emt 0:00:11]} 10. Bb3 {[%emt 0:00:26]} Nh5 {[%emt 0:00:26]} 11. Nc4 {[%emt 0:00:48]} Qf6 {[%emt 0:02:14]} 12. Nfxe5 {[%emt 0:09:37]} Nxe5 {[%emt 0:02:15]} 13. Nxe5 {[%emt 0:00:05]} Qxe5 {[%emt 0:00:11]} 14. d4 {[%emt 0:00:08]} Qxe4 {[%emt 0:00:43]} 15. Qxh5 {[%emt 0:00:22]} Qg4 {[%emt 0:00:18]} 16. Qxg4 {[%emt 0:01:15]} Bxg4 {[%emt 0:00:06]} 17. Re1 {[%emt 0:00:22]} Rfe8 {[%emt 0:06:41]} 18. Bf4 {[%emt 0:01:38]} Rad8 {[%emt 0:21:25]} 19. Ba4 {[%emt 0:00:23]} Rxe1+ {[%emt 0:03:02]} 20. Rxe1 {[%emt 0:00:05]} Kf8 {[%emt 0:00:16]} 21. b4 {[%emt 0:00:36]} c6 {[%emt 0:00:16]} 22. d5 {[%emt 0:03:06]} g5 {[%emt 0:01:10]} 23. Be3 {[%emt 0:01:48]} Bxe3 {[%emt 0:00:12]} 24. Rxe3 {[%emt 0:00:43]} cxd5 {[%emt 0:00:05]} 25. Bb3 {[%emt 0:00:52]} Be6 {[%emt 0:00:10]} 26. Rd3 {[%emt 0:00:53]} Rc8 {[%emt 0:00:15]} 27. f4 {[%emt 0:00:57]} Ke7 {[%emt 0:23:06]} 28. fxg5 {[%emt 0:01:03]} hxg5 {[%emt 0:00:06]} 29. Bxd5 {[%emt 0:01:12]} Bxd5 {[%emt 0:00:08]} 30. Rxd5 {[%emt 0:00:10]} f6 {[%emt 0:00:07]} 31. Rd3 {[%emt 0:00:42]} Rc4 {[%emt 0:01:04]} 32. Re3+ {[%emt 0:01:34]} Kf7 {[%emt 0:00:28]} 33. Kf2 {[%emt 0:00:18]} d5 {[%emt 0:40:33]} 34. Rh3 {[%emt 0:01:45]} d4 {[%emt 0:00:00]} 35. cxd4 {[%emt 0:00:11]} Rxb4 {[%emt 0:00:00]} 36. Rh7+ {[%emt 0:01:15]} Ke6 {[%emt 0:00:00]} 37. g3 {[%emt 0:00:44]} Kf5 {[%emt 0:00:00]} 38. Ke3 {[%emt 0:02:34]} Rb3+ {[%emt 0:00:00]} 39. Kd2 {[%emt 0:00:03]} Rb5 {[%emt 0:00:00]} 40. Kd3 {[%emt 0:01:07]} Rxa5 {[%emt 0:00:00]} 41. Rxb7 {[%emt 0:00:18]} Ra3+ {[%emt 0:00:00]} 42. Kc4 {[%emt 0:00:11]} Ra4+ {[%emt 0:00:00]} 43. Kc5 {[%emt 0:06:06]} Ra5+ {[%emt 0:00:00]} 44. Kc4 {[%emt 0:05:43]} Ra4+ {[%emt 0:00:00]} 45. Rb4 {[%emt 0:00:26]} Rxb4+ {[%emt 0:00:00]} 46. Kxb4 {[%emt 0:00:06]} Ke4 {[%emt 0:00:26]} 47. Kc5 {[%emt 0:02:02]} a5 {[%emt 0:00:19]} 48. d5 {[%emt 0:01:42]} a4 {[%emt 0:00:02]} 49. d6 {[%emt 0:00:17]} a3 {[%emt 0:00:01]} 50. d7 {[%emt 0:00:06]} a2 {[%emt 0:00:04]} 51. d8=Q {[%emt 0:00:09]} a1=Q {[%emt 0:00:10]} 52. Qd5+ {[%emt 0:00:19]} Ke3 {[%emt 0:00:06]} 53. Kd6 {[%emt 0:01:14]} Kf2 {[%emt 0:02:58]} 54. Ke6 {[%emt 0:01:37]} Kg1 {[%emt 0:00:12]} 55. h4 {[%emt 0:02:10]} gxh4 {[%emt 0:00:18]} 56. Qc5+ {[%emt 0:01:36]} Kh1 {[%emt 0:00:23]} 57. gxh4 {[%emt 0:01:16]} Qe1+ {[%emt 0:00:03]} 1/2-1/2

[Event "14th Chennai GM Open 2023"]
[Site "Chennai"]
[Date "2023.12.31"]
[Round "1.13"]
[White "Saniya Rafique Tadavi"]
[Black "Manish Anto Cristiano F"]
[Result "0-1"]
[ECO "C07"]
[WhiteElo "1470"]
[BlackElo "2349"]
[Annotator "RC"]
[PlyCount "148"]
[EventDate "2023.12.31"]
[EventType "swiss"]
[EventCountry "IND"]
[SourceTitle "playchess.com"]
[Source "ChessBase"]
[SourceQuality "1"]
[TimeControl "5400+30"]

1. e4 {[%emt 0:00:04]} e6 {[%emt 0:01:24]} 2. d4 {[%emt 0:00:08]} d5 {[%emt 0:00:06]} 3. Nd2 {[%emt 0:00:06]} c5 {[%emt 0:00:43]} 4. exd5 {[%emt 0:00:15]} Qxd5 {[%emt 0:00:07]} 5. Ngf3 {[%emt 0:00:11]} cxd4 {[%emt 0:00:18]} 6. Bc4 {[%emt 0:00:12]} Qd6 {[%emt 0:00:09]} 7. O-O {[%emt 0:00:17]} Nf6 {[%emt 0:00:40]} 8. Nb3 {[%emt 0:00:21]} Nc6 {[%emt 0:00:13]} 9. Nbxd4 {[%emt 0:00:36]} Nxd4 {[%emt 0:00:21]} 10. Nxd4 {[%emt 0:00:09]} Be7 {[%emt 0:00:31]} 11. Be3 {[%emt 0:01:41]} O-O {[%emt 0:00:35]} 12. Qe2 {[%emt 0:06:23]} a6 {[%emt 0:03:33]} 13. Rad1 {[%emt 0:00:24]} Qc7 {[%emt 0:00:28]} 14. h3 {[%emt 0:06:20]} Bd7 {[%emt 0:05:07]} 15. Rfe1 {[%emt 0:01:52]} Kh8 {[%emt 0:02:55]} 16. Bb3 {[%emt 0:08:26]} Rac8 {[%emt 0:05:01]} 17. c3 {[%emt 0:11:36]} Rcd8 {[%emt 0:09:15]} 18. Bg5 {[%emt 0:06:39]} h6 {[%emt 0:05:57]} 19. Bh4 {[%emt 0:00:12]} Bc8 {[%emt 0:04:13]} 20. Nf5 {[%emt 0:09:36]} Rxd1 {[%emt 0:04:08]} 21. Bxd1 {[%emt 0:00:09]} Bd8 {[%emt 0:08:27]} 22. Bg3 {[%emt 0:08:40]} Qc6 {[%emt 0:08:02]} 23. Nd4 {[%emt 0:10:26]} Qb6 {[%emt 0:01:15]} 24. Nf3 {[%emt 0:04:23]} Bc7 {[%emt 0:03:54]} 25. Be5 {[%emt 0:07:46]} Bxe5 {[%emt 0:04:21]} 26. Nxe5 {[%emt 0:00:06]} Nd7 {[%emt 0:01:12]} 27. Nc4 {[%emt 0:09:19]} Qc7 {[%emt 0:01:57]} 28. Bc2 {[%emt 0:02:59]} b5 {[%emt 0:09:15]} 29. Qd3 {[%emt 0:00:15]} f5 {[%emt 0:04:38]} 30. Nd6 {[%emt 0:00:15]} Nf6 {[%emt 0:03:56]} 31. Nxc8 {[%emt 0:02:45]} Qxc8 {[%emt 0:00:25]} 32. Qd6 {[%emt 0:00:03]} Re8 {[%emt 0:01:03]} 33. f3 {[%emt 0:00:12]} Kg8 {[%emt 0:02:43]} 34. Bb3 {[%emt 0:01:03]} Kf7 {[%emt 0:00:02]} 35. Re5 {[%emt 0:00:34]} Re7 {[%emt 0:01:57]} 36. Rxf5 {[%emt 0:00:49]} Qd7 {[%emt 0:00:42]} 37. Qxd7 {[%emt 0:00:32]} Rxd7 {[%emt 0:00:01]} 38. Rc5 {[%emt 0:02:02]} Rd2 {[%emt 0:00:30]} 39. Rc6 {[%emt 0:00:30]} Nd5 {[%emt 0:00:30]} 40. Rxa6 {[%emt 0:00:30]} Rxb2 {[%emt 0:00:30]} 41. c4 {[%emt 0:02:14]} bxc4 {[%emt 0:00:02]} 42. Bxc4 {[%emt 0:00:00]} Nf4 {[%emt 0:00:11]} 43. g3 {[%emt 0:00:03]} Nxh3+ {[%emt 0:00:08]} 44. Kf1 {[%emt 0:00:02]} Ng5 {[%emt 0:00:14]} 45. f4 {[%emt 0:00:06]} Ne4 {[%emt 0:00:11]} 46. Bxe6+ {[%emt 0:00:15]} Ke7 {[%emt 0:00:08]} 47. Bb3 {[%emt 0:00:47]} Nxg3+ {[%emt 0:00:20]} 48. Ke1 {[%emt 0:00:07]} h5 {[%emt 0:00:19]} 49. Ra7+ {[%emt 0:00:13]} Kf6 {[%emt 0:00:08]} 50. Rf7+ {[%emt 0:01:13]} Kg6 {[%emt 0:00:01]} 51. Rf8 {[%emt 0:00:09]} h4 {[%emt 0:00:42]} 52. Rh8 {[%emt 0:00:13]} Nf5 {[%emt 0:00:18]} 53. Be6 {[%emt 0:00:16]} Nh6 {[%emt 0:00:53]} 54. a4 {[%emt 0:00:10]} Rb4 {[%emt 0:00:08]} 55. f5+ {[%emt 0:00:59]} Nxf5 {[%emt 0:00:08]} 56. Bd7 {[%emt 0:00:47]} Rd4 {[%emt 0:00:42]} 57. Bc6 {[%emt 0:01:22]} Rd3 {[%emt 0:00:48]} 58. a5 {[%emt 0:00:34]} Ra3 {[%emt 0:00:06]} 59. Ra8 {[%emt 0:00:43]} h3 {[%emt 0:00:34]} 60. a6 {[%emt 0:00:29]} Kg5 {[%emt 0:01:59]} 61. Kf2 {[%emt 0:00:49]} Ra2+ {[%emt 0:00:11]} 62. Ke1 {[%emt 0:00:20]} h2 {[%emt 0:00:20]} 63. a7 {[%emt 0:00:11]} Nh4 {[%emt 0:02:16]} 64. Bd5 {[%emt 0:00:23]} Rg2 {[%emt 0:00:47]} 65. Bxg2 {[%emt 0:00:32]} Nxg2+ {[%emt 0:00:02]} 66. Kf2 {[%emt 0:00:10]} h1=Q {[%emt 0:00:05]} 67. Rb8 {[%emt 0:00:35]} Qe1+ {[%emt 0:00:39]} 68. Kxg2 {[%emt 0:00:02]} Qe2+ {[%emt 0:00:06]} 69. Kh1 {[%emt 0:00:53]} Qf1+ {[%emt 0:00:05]} 70. Kh2 {[%emt 0:00:03]} Qf2+ {[%emt 0:00:05]} 71. Kh1 {[%emt 0:00:16]} Qxa7 {[%emt 0:00:06]} 72. Rh8 {[%emt 0:00:05]} Kg4 {[%emt 0:01:04]} 73. Rh2 {[%emt 0:00:10]} Qa1+ {[%emt 0:00:10]} 74. Kg2 {[%emt 0:00:05]} g5 {[%emt 0:00:14]} 0-1

[Event "14th Chennai GM Open 2023"]
[Site "Chennai"]
[Date "2023.12.31"]
[Round "1.14"]
[White "Ravichandran, Siddharth"]
[Black "Surada Yashaswi Satya Gangadha"]
[Result "1-0"]
[ECO "C49"]
[WhiteElo "2348"]
[BlackElo "1464"]
[Annotator "RC"]
[PlyCount "79"]
[EventDate "2023.12.31"]
[EventType "swiss"]
[EventCountry "IND"]
[SourceTitle "playchess.com"]
[Source "ChessBase"]
[SourceQuality "1"]
[TimeControl "5400+30"]

1. e4 {[%emt 0:00:07]} e5 {[%emt 0:00:15]} 2. Nf3 {[%emt 0:00:13]} Nc6 {[%emt 0:00:07]} 3. Nc3 {[%emt 0:05:34]} Nf6 {[%emt 0:01:34]} 4. Bb5 {[%emt 0:00:11]} Bb4 {[%emt 0:02:22]} 5. O-O {[%emt 0:00:12]} O-O {[%emt 0:04:32]} 6. Bxc6 {[%emt 0:00:43]} dxc6 {[%emt 0:03:52]} 7. d3 {[%emt 0:00:10]} Re8 {[%emt 0:07:56]} 8. Ne2 {[%emt 0:05:26]} Bf8 {[%emt 0:24:09]} 9. h3 {[%emt 0:10:23]} c5 {[%emt 0:04:28]} 10. b3 {[%emt 0:04:35]} c6 {[%emt 0:03:12]} 11. Be3 {[%emt 0:08:24]} Qd6 {[%emt 0:03:00]} 12. Nd2 {[%emt 0:05:54]} Qc7 {[%emt 0:07:10]} 13. f4 {[%emt 0:06:25]} exf4 {[%emt 0:01:07]} 14. Bxf4 {[%emt 0:00:15]} Bd6 {[%emt 0:00:18]} 15. Bxd6 {[%emt 0:04:02]} Qxd6 {[%emt 0:00:54]} 16. Qe1 {[%emt 0:00:17]} Nh5 {[%emt 0:21:10]} 17. g4 {[%emt 0:15:03]} Qg6 {[%emt 0:04:18]} 18. Qh4 {[%emt 0:02:05]} Nf6 {[%emt 0:02:10]} 19. Nf4 {[%emt 0:02:02]} Qh6 {[%emt 0:00:08]} 20. Qxh6 {[%emt 0:01:13]} gxh6 {[%emt 0:00:03]} 21. Rf2 {[%emt 0:01:54]} Re7 {[%emt 0:02:09]} 22. Raf1 {[%emt 0:00:51]} Bd7 {[%emt 0:02:14]} 23. Nc4 {[%emt 0:00:48]} Rd8 {[%emt 0:00:49]} 24. Ne2 {[%emt 0:06:30]} Ne8 {[%emt 0:00:31]} 25. Ng3 {[%emt 0:00:24]} b5 {[%emt 0:00:30]} 26. Ne3 {[%emt 0:00:16]} a5 {[%emt 0:02:17]} 27. Kh2 {[%emt 0:02:03]} Bc8 {[%emt 0:00:47]} 28. Nh5 {[%emt 0:04:00]} Bd7 {[%emt 0:01:32]} 29. Rf3 {[%emt 0:04:21]} a4 {[%emt 0:00:51]} 30. Rg1 {[%emt 0:02:27]} Re6 {[%emt 0:00:29]} 31. Nf4 {[%emt 0:00:29]} Rf6 {[%emt 0:00:28]} 32. e5 {[%emt 0:00:13]} Rg6 {[%emt 0:00:20]} 33. Nxg6 {[%emt 0:00:17]} hxg6 {[%emt 0:00:02]} 34. bxa4 {[%emt 0:00:15]} Ra8 {[%emt 0:00:11]} 35. axb5 {[%emt 0:00:09]} cxb5 {[%emt 0:00:02]} 36. Ra1 {[%emt 0:06:23]} b4 {[%emt 0:00:19]} 37. Nc4 {[%emt 0:01:03]} Be6 {[%emt 0:00:14]} 38. a4 {[%emt 0:00:08]} bxa3 {[%emt 0:00:40]} 39. Rxa3 {[%emt 0:00:08]} Rb8 {[%emt 0:00:07]} 40. Ra5 {[%emt 0:00:27]} 1-0